bitfinex/quotes_BTCUSD_20260310
["timestamp","ask_amount","ask_price","bid_price","bid_amount"]
[1773129231171,0.04237344,70415.0,70404.0,0.07101806]
[1773129231377,0.08372597,70414.0,70401.0,0.0002]
[1773129231581,0.07237344,70410.0,70401.0,0.07122115]
[1773129231781,0.07237344,70410.0,70401.0,0.0002]
[1773129232008,0.07237344,70410.0,70401.0,0.07122155]
[1773129232373,0.03,70408.0,70401.0,0.07122155]
[1773129232778,0.00144,70411.0,70401.0,0.07122155]
[1773129232995,0.00144,70411.0,70402.0,0.25863135]
[1773129233433,0.00144,70411.0,70403.0,0.04255498]
[1773129233585,0.00144,70411.0,70403.0,0.25863135]
[1773129234347,0.00144,70411.0,70403.0,0.32965055]
[1773129234644,0.03,70410.0,70403.0,0.32965055]
[1773129235839,0.03,70410.0,70403.0,0.32985055]
[1773129236355,0.03,70409.0,70403.0,0.32985055]
[1773129236716,0.07099852,70424.0,70405.0,0.04255498]
[1773129237056,0.05383766,70420.0,70407.0,0.04255498]
[1773129237217,0.03,70419.0,70407.0,0.04255498]
[1773129237417,0.03,70419.0,70408.0,0.21607637]
[1773129237607,0.00144,70418.0,70409.0,0.04255498]
[1773129238036,0.00144,70418.0,70410.0,0.07101264]
[1773129239850,0.03,70418.0,70411.0,0.04255498]
[1773129240052,0.03,70418.0,70412.0,0.07101062]
[1773129240637,0.00144,70422.0,70414.0,0.04255498]
[1773129240855,0.03,70422.0,70414.0,0.04255498]
[1773129241864,0.03,70420.0,70414.0,0.04255498]
[1773129242048,0.03,70420.0,70412.0,0.28708699]
[1773129242875,0.04237344,70427.0,70412.0,0.28708699]
[1773129242876,0.11336793,70428.0,70412.0,0.28708699]
[1773129243075,0.17052,70452.0,70412.0,0.28708699]
[1773129243076,0.01300818,70431.0,70414.0,0.21607637]
[1773129243256,0.00144,70436.0,70417.0,0.04255498]
[1773129243457,0.00144,70436.0,70420.0,0.21417901]
[1773129243655,0.00144,70436.0,70422.0,0.04255498]
[1773129243897,0.00144,70436.0,70424.0,0.04255498]
[1773129244107,0.00144,70436.0,70426.0,0.21417901]
[1773129244284,0.00022001,70435.0,70428.0,0.11354947]
[1773129244620,0.03,70428.0,70414.0,0.00144]
[1773129244912,0.03,70428.0,70412.0,0.00144]
[1773129244913,0.03,70426.0,70412.0,0.00144]
[1773129245421,0.03,70421.0,70409.0,0.00144]
[1773129245634,0.03144,70421.0,70409.0,0.00144]
[1773129246262,0.00144,70421.0,70409.0,0.00144]
[1773129247081,0.03,70420.0,70410.0,0.07101264]
[1773129248327,0.03,70420.0,70410.0,0.11356762]
[1773129249230,0.03,70419.0,70411.0,0.04255498]
[1773129250256,0.03,70418.0,70411.0,0.04255498]
[1773129250457,0.03,70418.0,70410.0,0.07101264]
[1773129251065,0.00022001,70419.0,70412.0,0.04186159]
[1773129251240,0.07244055,70422.0,70413.0,0.1128712]
[1773129251446,0.03,70421.0,70413.0,0.1128712]
[1773129251964,0.03,70421.0,70410.0,0.04186159]
[1773129252727,0.03,70437.0,70410.0,0.04186159]
[1773129252947,0.03,70437.0,70414.0,0.04186159]
[1773129253162,0.03,70437.0,70417.0,0.21417901]
[1773129253403,0.03144,70437.0,70421.0,0.04186159]
[1773129253603,0.03144,70437.0,70423.0,0.21417901]
[1773129253814,0.03144,70437.0,70424.0,0.04186159]
[1773129253988,0.03,70437.0,70424.0,0.2560406]
[1773129254281,0.03,70437.0,70422.0,0.00144]
[1773129254282,0.0003722,70439.0,70425.0,0.00502428]
[1773129254486,0.00144,70440.0,70427.0,0.21920329]
[1773129254834,0.2279817,70450.0,70430.0,0.21417901]
[1773129254835,0.00144,70446.0,70430.0,0.21417901]
[1773129255149,0.04277184,70442.0,70421.0,0.00144]
[1773129255347,0.03,70438.0,70422.0,0.07100053]
[1773129255545,0.07098138,70441.0,70422.0,0.07100053]
[1773129255546,0.03,70434.0,70422.0,0.07100053]
[1773129255771,0.00144,70439.0,70423.0,0.00144]
[1773129255772,0.075345,70432.0,70423.0,0.00144]
[1773129255966,0.075345,70432.0,70424.0,0.001]
[1773129256167,0.075345,70432.0,70423.0,0.00144]
[1773129256485,0.03,70432.0,70423.0,0.00144]
[1773129256687,0.03,70436.0,70422.0,0.07244053]
[1773129256888,0.03,70436.0,70422.0,0.07100053]
[1773129257128,0.075345,70434.0,70424.0,0.001]
[1773129257701,0.075345,70434.0,70425.0,0.07099751]
[1773129257878,0.07528351,70434.0,70425.0,0.07099751]
[1773129258200,0.03,70434.0,70425.0,0.07099751]
[1773129258452,0.07528351,70433.0,70425.0,0.07099751]
[1773129259967,0.07528351,70433.0,70425.0,5.07099751]
[1773129261875,0.03,70432.0,70425.0,5.03917727]
[1773129262081,0.04512376,70427.0,70425.0,2.69774112]
[1773129262284,0.07512376,70426.0,70425.0,2.66518498]
[1773129262895,0.00023,70450.0,70425.0,2.66618498]
[1773129263069,0.04512376,70436.0,70425.0,2.66618498]
[1773129263390,0.03,70429.0,70425.0,2.63301464]
[1773129263586,0.07512376,70426.0,70425.0,2.63301464]
[1773129264832,0.14612026,70426.0,70425.0,2.63301464]
[1773129264968,0.07512376,70426.0,70425.0,2.57228564]
[1773129266939,0.07512376,70426.0,70425.0,2.50010964]
[1773129267338,0.07512376,70426.0,70425.0,2.47760964]
[1773129267509,0.07512376,70426.0,70425.0,2.41760964]
[1773129267709,0.07512376,70426.0,70425.0,2.35760964]
[1773129267908,0.07512376,70426.0,70425.0,2.20984064]
[1773129268133,0.07512376,70426.0,70425.0,2.20224064]
[1773129268934,0.07512376,70426.0,70425.0,2.10258664]
[1773129269966,0.07512376,70426.0,70425.0,2.00943364]
[1773129270940,0.07512376,70426.0,70425.0,1.91542264]
[1773129271986,0.07512376,70426.0,70425.0,1.01682963]
[1773129271987,0.14612026,70426.0,70425.0,1.01682963]
[1773129272224,0.14612026,70426.0,70425.0,0.96392963]
[1773129272405,0.0409965,70426.0,70425.0,0.94410475]
[1773129272712,0.11113779,70426.0,70425.0,0.93605282]
[1773129273072,0.00022001,70433.0,70425.0,0.89733582]
[1773129273272,0.03144,70432.0,70426.0,0.25937508]
[1773129273866,0.10243095,70432.0,70426.0,0.25937508]
[1773129274284,0.08151922,70430.0,70425.0,0.89733582]
[1773129274484,0.08151922,70430.0,70425.0,1.1567109]
[1773129274712,0.03,70426.0,70425.0,0.89733582]
[1773129274891,0.08151922,70426.0,70425.0,0.76665116]
[1773129275573,0.00144,70442.0,70428.0,0.25533733]
[1773129275771,0.00144,70442.0,70430.0,0.25533733]
[1773129276010,0.03,70438.0,70426.0,0.0709965]
[1773129276207,0.03,70436.0,70426.0,0.0709965]
[1773129276417,0.03,70436.0,70427.0,0.25533733]
[1773129276696,0.00144,70435.0,70427.0,0.25533733]
[1773129276917,0.00144,70434.0,70426.0,0.0709965]
[1773129277113,0.03,70435.0,70426.0,0.0709965]
[1773129277325,0.00144,70434.0,70427.0,0.25533733]
[1773129277555,0.00144,70433.0,70427.0,0.25533733]
[1773129277755,0.00144,70433.0,70426.0,0.07231418]
[1773129277756,0.00022001,70445.0,70426.0,0.0709965]
[1773129277958,0.00144,70444.0,70430.0,0.25533733]
[1773129278362,0.00144,70444.0,70430.0,0.25586405]
[1773129280243,0.00144,70444.0,70432.0,0.25533733]
[1773129280629,0.00022001,70441.0,70432.0,0.25533733]
[1773129281827,0.03,70440.0,70432.0,0.25533733]
[1773129282023,0.08446486,70440.0,70433.0,0.07098945]
[1773129283262,0.00022001,70441.0,70434.0,0.25533733]
[1773129283263,0.03,70439.0,70434.0,0.25533733]
[1773129283595,0.03,70437.0,70433.0,0.07098945]
[1773129283739,0.03,70437.0,70433.0,0.32632678]
[1773129283935,0.03,70437.0,70433.0,0.25533733]
[1773129284179,0.08427346,70437.0,70431.0,0.07099082]
[1773129284559,0.03,70436.0,70431.0,0.07099082]
[1773129284770,0.03,70436.0,70432.0,0.25533733]
[1773129284980,0.00144,70438.0,70432.0,0.25533733]
[1773129286267,0.03,70437.0,70433.0,0.07098945]
[1773129286913,0.03,70437.0,70433.0,0.32632678]
[1773129287068,0.03,70437.0,70433.0,0.07098945]
[1773129287428,0.00144,70438.0,70434.0,0.25533733]
[1773129287725,0.00166001,70438.0,70434.0,0.32632558]
[1773129289292,0.00166001,70438.0,70435.0,0.25533733]
[1773129289695,0.03,70434.0,70424.0,0.0002]
[1773129289913,0.03,70428.0,70424.0,0.0002]
[1773129290255,0.0837015,70419.0,70418.0,4.76598844]
[1773129290459,0.0851415,70419.0,70418.0,4.76390939]
[1773129290737,0.0851415,70419.0,70418.0,4.76370939]
[1773129291488,0.0851415,70419.0,70418.0,4.42169962]
[1773129291686,0.15614506,70419.0,70418.0,1e-08]
[1773129293538,0.15614506,70419.0,70416.0,0.0001]
[1773129293539,0.08583862,70417.0,70416.0,0.0001]
[1773129294103,0.1568442,70417.0,70416.0,0.0001]
[1773129295460,0.09404364,70417.0,70416.0,0.0001]
[1773129295838,0.04100558,70417.0,70410.0,0.0002]
[1773129296039,0.03,70413.0,70407.0,0.59885]
[1773129296235,0.00144,70412.0,70407.0,0.86871321]
[1773129296440,0.00144,70412.0,70408.0,0.26986321]
[1773129297052,0.03,70415.0,70408.0,0.26986321]
[1773129297255,0.00144,70414.0,70408.0,0.26986321]
[1773129297487,0.00144,70413.0,70408.0,0.27006321]
[1773129298421,0.01350639,70455.0,70433.0,0.24206189]
[1773129298658,0.01056262,70467.0,70435.0,0.24206189]
[1773129298659,0.05303806,70461.0,70435.0,0.24206189]
[1773129298851,0.05303806,70454.0,70436.0,0.14171862]
[1773129299054,0.25026253,70451.0,70437.0,0.14027862]
[1773129299248,0.03,70447.0,70438.0,0.14027862]
[1773129299447,0.03,70445.0,70434.0,0.29885]
[1773129299611,0.03,70445.0,70435.0,0.14033313]
[1773129299807,0.03,70445.0,70434.0,0.29885]
[1773129300313,0.00144,70447.0,70437.0,0.05036475]
[1773129300517,0.31352873,70464.0,70441.0,0.05036475]
[1773129300518,0.00144,70453.0,70441.0,0.05036475]
[1773129300800,0.00144,70456.0,70443.0,0.24206189]
[1773129301002,0.00144,70457.0,70444.0,0.05180475]
[1773129301224,0.00144,70458.0,70445.0,0.05036475]
[1773129301638,0.00144,70459.0,70445.0,0.05036475]
[1773129301815,0.03,70463.0,70445.0,0.05036475]
[1773129302019,0.001,70456.0,70445.0,0.05036475]
[1773129302425,0.00144,70459.0,70446.0,0.07097635]
[1773129302635,0.00144,70459.0,70447.0,0.05036475]
[1773129302836,0.001,70459.0,70448.0,0.05036475]
[1773129303101,0.001,70459.0,70448.0,0.24206189]
[1773129303337,0.001,70459.0,70449.0,0.05036475]
[1773129303564,0.01447818,70465.0,70447.0,0.59885]
[1773129303565,0.01447818,70465.0,70451.0,0.05036475]
[1773129303864,0.01147818,70465.0,70451.0,0.05036475]
[1773129304098,0.03,70464.0,70451.0,0.05036475]
[1773129304349,0.07116628,70476.0,70451.0,0.05036475]
[1773129304350,0.00144,70474.0,70451.0,0.05036475]
[1773129304598,0.081509,70470.0,70457.0,0.05036475]
[1773129304850,0.00022001,70467.0,70457.0,0.05027812]
[1773129305161,0.00022001,70476.0,70460.0,0.29669707]
[1773129305374,0.00022001,70476.0,70463.0,0.05036475]
[1773129305622,0.00022001,70474.0,70463.0,0.05180475]
[1773129305822,0.00075001,70475.0,70463.0,0.05180475]
[1773129305952,0.00075001,70475.0,70464.0,0.59885]
[1773129306157,0.00075001,70475.0,70456.0,0.07096627]
[1773129306158,0.03,70469.0,70459.0,0.60029]
[1773129306356,0.03,70469.0,70460.0,0.13983462]
[1773129306555,0.03,70469.0,70462.0,0.07096023]
[1773129306783,0.0303,70469.0,70462.0,0.07096023]
[1773129307129,0.00144,70471.0,70463.0,0.64677476]
[1773129307326,0.00045001,70475.0,70464.0,0.05036475]
[1773129307459,0.00144,70473.0,70464.0,0.05036475]
[1773129308850,0.00144,70473.0,70465.0,0.07095721]
[1773129309112,0.297912,70479.0,70465.0,0.07095721]
[1773129309113,1e-08,70487.0,70465.0,0.66736722]
[1773129309345,0.39883935,70495.0,70478.0,0.05036475]
[1773129309500,0.00144,70490.0,70478.0,0.05036475]
[1773129310078,0.00144,70490.0,70479.0,0.59641001]
[1773129310288,0.00144,70491.0,70476.0,0.06224615]
[1773129310484,0.00144,70491.0,70475.0,0.29669707]
[1773129310485,0.00144,70491.0,70477.0,0.13981782]
[1773129310731,0.00144,70491.0,70476.0,0.06224615]
[1773129310926,0.00144,70491.0,70478.0,0.07094412]
[1773129311133,0.00144,70491.0,70479.0,0.06224615]
[1773129311742,0.00144,70493.0,70480.0,0.06224615]
[1773129311944,0.03,70494.0,70481.0,0.06224615]
[1773129312118,0.01157,70500.0,70483.0,0.29669707]
[1773129312305,0.01013,70500.0,70486.0,0.06224615]
[1773129312505,0.01013,70500.0,70487.0,0.06224615]
[1773129312733,0.03,70499.0,70488.0,0.06224615]
[1773129312925,0.03,70499.0,70489.0,0.07093305]
[1773129313257,0.00022001,70496.0,70490.0,0.06224615]
[1773129315015,0.00022001,70496.0,70491.0,0.07093104]
[1773129315328,0.03,70499.0,70492.0,0.06224615]
[1773129315737,0.03,70499.0,70491.0,0.07093104]
[1773129315738,0.00022001,70503.0,70494.0,0.06224615]
[1773129317374,0.00022001,70503.0,70496.0,0.06224615]
[1773129317520,0.00048,70508.0,70498.0,0.06224615]
[1773129319477,0.00048,70508.0,70500.0,0.06224615]
[1773129320114,0.00048,70508.0,70496.0,0.29885]
[1773129320336,0.03,70504.0,70494.0,0.07092799]
[1773129321339,0.03,70503.0,70494.0,0.07092799]
[1773129321757,0.03,70503.0,70500.0,0.001]
[1773129321955,0.03,70503.0,70494.0,0.07092799]
[1773129322361,0.03,70502.0,70494.0,0.07092799]
[1773129323168,0.03,70498.0,70492.0,3.90151717]
[1773129323367,0.03,70496.0,70492.0,3.58684086]
[1773129323549,0.00144,70497.0,70493.0,0.35894322]
[1773129323753,0.00144,70497.0,70493.0,0.29669707]
[1773129323974,0.07092046,70502.0,70492.0,3.65777039]
[1773129323975,0.07092135,70501.0,70492.0,3.47101169]
[1773129324175,0.00144,70500.0,70492.0,3.8569438]
[1773129324357,0.03144,70500.0,70492.0,3.8569438]
[1773129325043,0.03144,70500.0,70492.0,3.78601383]
[1773129325244,0.03,70498.0,70492.0,3.42807387]
[1773129325448,0.09115293,70493.0,70492.0,3.42807387]
[1773129326112,0.09115293,70493.0,70492.0,3.32412987]
[1773129326405,0.07092802,70494.0,70478.0,0.00144]
[1773129326406,0.03,70488.0,70478.0,0.00144]
[1773129326634,0.03,70488.0,70479.0,0.13958529]
[1773129326841,0.03,70488.0,70478.0,0.29813707]
[1773129327190,0.03,70488.0,70479.0,0.13978788]
[1773129327364,0.03,70488.0,70480.0,0.13978788]
[1773129327569,0.03,70488.0,70481.0,0.13978788]
[1773129327777,0.03,70488.0,70480.0,0.07094134]
[1773129328132,0.09115293,70487.0,70481.0,0.13978719]
[1773129328331,0.07093228,70490.0,70482.0,0.13978719]
[1773129328332,0.03,70485.0,70482.0,0.13978719]
[1773129328547,0.03,70485.0,70483.0,0.13978719]
[1773129328717,0.03,70485.0,70484.0,0.13978719]
[1773129329070,0.03,70485.0,70480.0,0.07094134]
[1773129329275,0.07093365,70489.0,70481.0,0.14011454]
[1773129329276,0.09115293,70483.0,70481.0,0.14011454]
[1773129329488,0.09115293,70483.0,70477.0,0.07094439]
[1773129329489,0.03,70483.0,70482.0,0.14011454]
[1773129329980,0.03,70483.0,70482.0,0.02427654]
[1773129330187,0.09115293,70483.0,70482.0,0.02427654]
[1773129330427,0.09115293,70483.0,70477.0,0.07094439]
[1773129332004,0.09115293,70483.0,70475.0,0.07094696]
[1773129332780,0.03,70480.0,70465.0,5.0]
[1773129332984,0.03,70474.0,70465.0,5.07095672]
[1773129333372,0.03,70474.0,70465.0,5.36765379]
[1773129333767,0.03,70474.0,70465.0,5.07095701]
[1773129333991,0.16210168,70474.0,70465.0,5.07095701]
[1773129334325,0.03,70472.0,70465.0,5.0002]
[1773129335086,0.03,70472.0,70465.0,5.07115675]
[1773129335527,0.03,70472.0,70465.0,5.0002]
[1773129336060,0.03,70469.0,70465.0,5.0002]
[1773129336241,0.09115293,70467.0,70465.0,5.0002]
[1773129336652,0.03,70467.0,70465.0,5.0002]
[1773129337253,0.13210309,70472.0,70465.0,5.0002]
[1773129337500,0.07095016,70472.0,70465.0,5.33719625]
[1773129337983,0.07094986,70473.0,70465.0,5.33719625]
[1773129338339,0.03,70472.0,70465.0,5.33719625]
[1773129338536,0.031,70472.0,70465.0,5.33719625]
[1773129338779,0.031,70472.0,70466.0,0.33699625]
[1773129339111,0.031,70472.0,70465.0,5.0002]
[1773129339987,0.03,70470.0,70465.0,4.92457]
[1773129340162,0.00144,70469.0,70466.0,0.33699625]
[1773129340385,0.07095117,70472.0,70466.0,0.33699625]
[1773129340578,0.07095117,70472.0,70466.0,0.39442899]
[1773129340937,0.07195117,70472.0,70466.0,0.27622299]
[1773129341270,0.03,70471.0,70466.0,0.27642299]
[1773129341644,0.00144,70470.0,70466.0,0.27642299]
[1773129341916,0.00144,70470.0,70466.0,0.21899025]
[1773129342072,0.00144,70470.0,70466.0,0.10215825]
[1773129342280,0.03,70469.0,70466.0,0.10215825]
[1773129343013,0.03,70469.0,70466.0,0.00932625]
[1773129343446,0.03144,70470.0,70466.0,0.00932625]
[1773129343781,0.03144,70470.0,70465.0,4.92457]
[1773129343782,0.03144,70470.0,70465.0,4.24969919]
[1773129343987,0.03144,70470.0,70465.0,4.23365319]
[1773129344196,0.0900405,70470.0,70465.0,4.23365319]
[1773129344402,0.03,70469.0,70465.0,4.22522319]
[1773129344604,0.03,70469.0,70465.0,4.20274319]
[1773129344809,0.03,70469.0,70465.0,4.18026319]
[1773129345195,0.03,70469.0,70465.0,4.12763819]
[1773129345570,0.03,70468.0,70465.0,4.12763819]
[1773129345915,0.03,70466.0,70465.0,3.98728919]
[1773129346973,0.03,70466.0,70465.0,3.93785119]
[1773129347177,0.0886005,70466.0,70465.0,3.20887087]
[1773129347375,0.0886005,70466.0,70465.0,2.81254447]
[1773129347583,0.0886005,70466.0,70465.0,2.1097993]
[1773129347826,0.0886005,70466.0,70465.0,2.0115643]
[1773129348015,0.03,70466.0,70465.0,2.0115643]
[1773129348235,0.03,70466.0,70465.0,2.0111643]
[1773129348643,0.03,70466.0,70465.0,2.36814787]
[1773129348794,0.07095519,70469.0,70466.0,0.35778357]
[1773129348980,0.07095519,70469.0,70466.0,0.29074057]
[1773129349185,0.07095519,70469.0,70466.0,0.21978538]
[1773129349384,0.03,70468.0,70465.0,2.0103643]
[1773129349822,0.001,70466.0,70465.0,2.24467055]
[1773129350051,0.03,70468.0,70465.0,2.09181755]
[1773129350681,0.1009547,70468.0,70465.0,2.09181755]
[1773129351063,0.1009547,70468.0,70465.0,2.05552055]
[1773129351424,0.1009547,70468.0,70465.0,1.7185243]
[1773129352280,0.08968531,70466.0,70465.0,1.47093277]
[1773129352507,0.08968531,70466.0,70449.0,0.37250554]
[1773129352722,0.03,70459.0,70440.0,0.36243663]
[1773129352942,0.03,70453.0,70440.0,0.36243663]
[1773129353161,0.00144,70452.0,70440.0,0.36243663]
[1773129353375,0.03,70451.0,70440.0,0.36243663]
[1773129354213,0.03,70451.0,70440.0,0.36261623]
[1773129354384,0.07095821,70464.0,70440.0,0.36261623]
[1773129354385,0.118587,70463.0,70443.0,0.05779057]
[1773129354586,0.118587,70463.0,70440.0,0.0001796]
[1773129354587,0.07096023,70462.0,70446.0,0.36243663]
[1773129354891,0.05968531,70461.0,70446.0,0.36243663]
[1773129355283,0.05968531,70461.0,70446.0,0.36261623]
[1773129355453,0.03,70458.0,70457.0,0.0001]
[1773129355654,0.08968531,70458.0,70457.0,0.0001]
[1773129356927,0.16164957,70458.0,70457.0,0.0001]
[1773129358796,0.10196426,70458.0,70455.0,0.0001796]
[1773129359203,0.0709562,70466.0,70454.0,0.4202272]
[1773129359409,0.0709562,70466.0,70454.0,0.36243663]
[1773129359613,0.05968531,70465.0,70450.0,0.36263663]
[1773129359860,0.001,70458.0,70452.0,0.36243663]
[1773129360319,0.05968531,70465.0,70450.0,0.0002]
[1773129360522,0.0709562,70466.0,70450.0,0.36263663]
[1773129360523,0.05968531,70462.0,70450.0,0.36263663]
[1773129360726,0.05968531,70462.0,70450.0,0.43360881]
[1773129360947,0.07096124,70461.0,70450.0,0.43360881]
[1773129361193,0.07095997,70463.0,70451.0,0.05779057]
[1773129361394,0.07095997,70463.0,70452.0,0.4202272]
[1773129361617,0.07095997,70463.0,70453.0,0.4202272]
[1773129361818,0.07095997,70463.0,70454.0,0.05779057]
[1773129361969,0.07095997,70463.0,70455.0,0.36243663]
[1773129363260,0.00144,70464.0,70457.0,0.36243663]
[1773129363675,0.00022001,70467.0,70457.0,0.36243663]
[1773129363974,0.00022001,70467.0,70456.0,0.07096627]
[1773129363975,0.07116766,70475.0,70460.0,0.05779057]
[1773129364184,0.07116766,70475.0,70463.0,0.35093434]
[1773129365403,0.00144,70474.0,70463.0,0.35093434]
[1773129366103,0.00144,70473.0,70463.0,0.35093434]
[1773129366939,0.00144,70473.0,70463.0,0.4218935]
[1773129367456,0.07238954,70473.0,70463.0,0.4218935]
[1773129367661,0.07338954,70473.0,70463.0,0.4218935]
[1773129368189,0.00244,70473.0,70463.0,0.4218935]
[1773129368383,0.00244,70473.0,70464.0,0.35093434]
[1773129368558,0.07094459,70478.0,70468.0,0.35093434]
[1773129368764,0.00022001,70497.0,70469.0,0.05779057]
[1773129368765,0.0711606,70482.0,70469.0,0.05779057]
[1773129368949,0.05968531,70481.0,70464.0,0.26892034]
[1773129369150,0.03,70480.0,70464.0,0.24613034]
[1773129369366,0.10094412,70478.0,70465.0,0.42189155]
[1773129369568,0.00014709,70477.0,70465.0,0.42189155]
[1773129369947,0.03,70473.0,70453.0,0.07096929]
[1773129370147,0.03,70469.0,70463.0,0.0002]
[1773129370347,0.05619779,70468.0,70463.0,0.0001]
[1773129370548,0.03,70467.0,70463.0,0.0001]
[1773129371373,0.05619779,70468.0,70463.0,0.0001]
[1773129371374,0.03,70465.0,70463.0,0.0001]
[1773129371976,0.00014709,70464.0,70463.0,0.0001]
[1773129372160,0.00014709,70464.0,70456.0,0.42189995]
[1773129372161,0.00014709,70464.0,70456.0,0.35023434]
[1773129372358,0.00014709,70464.0,70456.0,0.29054903]
[1773129372565,0.00014709,70464.0,70455.0,0.07116695]
[1773129372970,0.00014709,70464.0,70455.0,0.0002]
[1773129373381,0.0711053,70464.0,70455.0,5e-05]
[1773129373605,0.03,70463.0,70455.0,5e-05]
[1773129373812,0.00144,70462.0,70455.0,5e-05]
[1773129374266,0.03,70461.0,70455.0,5e-05]
[1773129374463,0.05619779,70462.0,70452.0,4.99195]
[1773129374464,0.03,70459.0,70452.0,4.99195]
[1773129375136,0.03,70459.0,70452.0,4.99185]
[1773129375485,0.07096426,70458.0,70452.0,4.99185]
[1773129375699,0.03,70457.0,70452.0,4.99185]
[1773129376002,0.03,70455.0,70452.0,4.25959848]
[1773129376202,0.03,70455.0,70452.0,4.25909848]
[1773129376467,0.03,70455.0,70452.0,4.25829848]
[1773129376668,0.03,70455.0,70452.0,4.25749848]
[1773129376789,0.03,70455.0,70452.0,4.25669848]
[1773129376995,0.03,70457.0,70452.0,4.11242248]
[1773129377215,0.03,70457.0,70452.0,4.10402448]
[1773129377908,0.03,70455.0,70452.0,4.10342448]
[1773129378127,0.00144,70454.0,70452.0,4.06398348]
[1773129378330,0.00144,70454.0,70452.0,4.06318348]
[1773129378528,0.00144,70454.0,70452.0,4.06238348]
[1773129378903,0.03,70455.0,70452.0,4.06118348]
[1773129379081,0.07096627,70456.0,70452.0,4.29159525]
[1773129379236,0.07096627,70456.0,70452.0,3.94086091]
[1773129379851,0.07096627,70456.0,70452.0,4.29179525]
[1773129380201,0.03,70464.0,70452.0,4.18261125]
[1773129380381,0.00144,70463.0,70452.0,4.18261125]
[1773129380605,0.00014709,70455.0,70452.0,4.18261125]
[1773129380887,0.00144,70454.0,70452.0,4.18261125]
[1773129381089,0.00144,70454.0,70452.0,4.09648425]
[1773129381657,0.00144,70454.0,70444.0,0.07117771]
[1773129381658,0.03707015,70453.0,70448.0,0.46580401]
[1773129381886,0.03707015,70453.0,70414.0,0.39612737]
[1773129381887,0.00023,70425.0,70400.0,0.35237434]
[1773129382118,0.03,70423.0,70414.0,0.35093434]
[1773129382332,0.03,70423.0,70416.0,0.35093434]
[1773129382665,0.03,70423.0,70416.0,0.32452947]
[1773129382865,0.03,70423.0,70417.0,0.05708443]
[1773129383086,0.14197039,70425.0,70420.0,0.35093434]
[1773129383261,0.00023,70425.0,70420.0,0.34253634]
[1773129383480,0.07122768,70425.0,70420.0,0.34253634]
[1773129383686,0.04633446,70424.0,70420.0,0.34253634]
[1773129384073,0.03,70423.0,70420.0,0.34253634]
[1773129384275,0.03,70421.0,70420.0,0.34253634]
[1773129384600,0.21258237,70425.0,70415.0,0.35093434]
[1773129384774,0.02213662,70424.0,70415.0,0.40801877]
[1773129385324,0.03,70423.0,70415.0,0.40801877]
[1773129385464,0.03,70423.0,70415.0,0.38456053]
[1773129385681,0.03,70423.0,70409.0,0.00144]
[1773129385890,0.03,70423.0,70409.0,0.35093434]
[1773129386096,0.03,70421.0,70409.0,0.35237434]
[1773129386749,0.03,70421.0,70409.0,0.40945877]
[1773129386945,0.12575832,70422.0,70397.0,0.35093434]
[1773129386946,0.03,70417.0,70397.0,0.35093434]
[1773129387154,0.03,70415.0,70401.0,0.35093434]
[1773129387330,0.16277843,70420.0,70401.0,0.35093434]
[1773129387331,0.03,70413.0,70401.0,0.35093434]
[1773129387514,0.03,70413.0,70402.0,0.00144]
[1773129387724,0.03,70413.0,70401.0,0.35237434]
[1773129387920,0.03,70413.0,70401.0,0.35093434]
[1773129388170,0.03,70413.0,70389.0,0.07103375]
[1773129388171,0.03,70407.0,70395.0,0.35093434]
[1773129388476,0.03,70407.0,70395.0,0.35237434]
[1773129388618,0.03,70407.0,70395.0,0.35093434]
[1773129388819,0.03,70407.0,70403.0,5e-05]
[1773129389057,0.03,70407.0,70379.0,0.49093633]
[1773129389261,0.03,70405.0,70390.0,0.05708443]
[1773129389493,0.03,70405.0,70393.0,0.35093434]
[1773129389649,0.03,70405.0,70394.0,0.05708443]
[1773129389853,0.03,70405.0,70395.0,0.35237434]
[1773129390053,0.03,70403.0,70395.0,0.40945877]
[1773129390455,0.03,70401.0,70395.0,0.40801877]
[1773129390728,0.03,70401.0,70391.0,0.35237434]
[1773129391257,0.03,70401.0,70391.0,0.35093434]
[1773129391862,0.03,70401.0,70391.0,0.35237434]
[1773129392063,0.03,70399.0,70388.0,0.0002]
[1773129392728,0.03,70399.0,70388.0,0.40821877]
[1773129392919,0.03,70399.0,70389.0,0.05708443]
[1773129393217,0.03,70399.0,70390.0,0.35093434]
[1773129394833,0.82252575,70398.0,70350.0,0.00023]
[1773129395029,0.03,70379.0,70367.0,0.05708443]
[1773129395428,0.03,70379.0,70371.0,0.42910265]
[1773129396015,0.00144,70380.0,70371.0,0.42910265]
[1773129396411,0.03,70379.0,70367.0,0.48618708]
[1773129396611,0.03,70379.0,70368.0,0.00023]
[1773129396798,0.03,70377.0,70368.0,0.00023]
[1773129396981,0.03,70377.0,70375.0,0.0001]
[1773129397190,0.03,70377.0,70368.0,0.42910265]
[1773129398008,0.03,70377.0,70369.0,0.05708443]
[1773129398210,0.03,70377.0,70370.0,0.42910265]
[1773129399134,0.03,70375.0,70370.0,0.42910265]
[1773129400257,0.03,70375.0,70370.0,0.35922783]
[1773129400409,0.03,70375.0,70365.0,0.42910265]
[1773129401261,0.03,70373.0,70365.0,0.42910265]
[1773129403357,0.03,70371.0,70366.0,0.07893056]
[1773129403553,0.03,70371.0,70367.0,0.42910265]
[1773129404186,0.07104896,70374.0,70369.0,0.002]
[1773129404390,0.03,70373.0,70369.0,0.002]
[1773129404734,0.07248391,70380.0,70369.0,0.002]
[1773129404967,0.07104391,70379.0,70369.0,0.002]
[1773129405188,0.00144,70383.0,70371.0,0.07893056]
[1773129405414,0.00144,70383.0,70374.0,0.42910265]
[1773129405710,0.00144,70383.0,70374.0,0.50803321]
[1773129406043,0.00144,70383.0,70374.0,0.42910265]
[1773129406258,0.00144,70386.0,70376.0,0.42910265]
[1773129406469,0.07103584,70387.0,70379.0,0.07893056]
[1773129406843,0.07102978,70394.0,70382.0,0.42910265]
[1773129407052,0.07102978,70394.0,70374.0,0.07104894]
[1773129407053,0.07102978,70394.0,70384.0,0.42910265]
[1773129407393,0.03,70393.0,70384.0,0.42910265]